{"text_format":"1","workbook":"xlsx","n_sheets":5,"sheets":["PFC","PFC D E F G","PFC H","słownik","PFC D"],"not_rendered":{"charts":0,"images":0,"macros":1,"external_links":0,"defined_names":3,"comments":0,"pivot_tables":0},"unopened":[],"bounds":{"document_bytes":16777216,"sheet_cells":100000,"rows_first":2000,"rows_last":500,"rows_between":2000,"halvings":0,"cell_chars":16384,"cell_head_chars":4096},"cells_cut":0,"cells_raw":0,"read":"whole","date_system":"1900"}

{"sheet":"PFC","index":0,"n_rows":551,"n_cols":12,"rows_kept":551,"cut":false,"hidden":false,"merged":[[373,3,377,3],[372,0,372,3],[160,0,160,3],[14,0,14,3],[12,0,12,11],[13,0,13,11],[15,2,19,2],[161,1,165,1],[161,2,165,2],[481,12,481,13],[363,0,363,11],[358,0,358,11],[19,5,19,10],[377,5,377,11],[359,0,359,11],[165,5,165,11],[364,0,364,11],[373,0,377,0],[373,4,377,4],[15,0,19,0],[161,0,165,0],[161,4,165,4],[161,3,165,3],[15,3,19,3],[15,1,19,1]]}
[null,null,null,null,null,null,null,null,null,null,"Załącznik nr 27"]
["Część",null,null,"………",{"$f":"IF(D2=\"\",\"<- Proszę uzupełnić dane dot. części budżetowej\",\"\")","v":""}]
[null,null,null,"(nr, nazwa)"]
["Dział",null,null,"………",{"$f":"IF(D4=\"\",\"<- Proszę uzupełnić dane dot. działu\",\"\")","v":""},null,null,null,null,null,"PFC"]
[null,null,null,"(nr, nazwa)"]
["Rozdział",null,null,"………",{"$f":"IF(D6=\"\",\"<- Proszę uzupełnić dane dot. rozdziału\",\"\")","v":""},null,null,null,null,"Przed wypełnieniem formularza należy zapoznać "]
[null,null,null,"(nr, nazwa)",null,null,null,null,null,"się ze szczegółowym sposobem opracowywania "]
["Nazwa funduszu",null,null,"………",null,null,null,null,null,"materiałów do WPFP oraz projektu ustawy "]
[null,null,null,"(nazwa funduszu)",null,null,null,null,null,"budżetowej zawartym w załączniku nr 41."]
[]
[]
[]
[]
["PROJEKT PLANU FINANSOWEGO PAŃSTWOWEGO FUNDUSZU CELOWEGO Z DODATKOWYMI INFORMACJAMI UZUPEŁNIAJĄCYMI "]
["Część A"]
["Lp.","CHAPTER_CODE","UATTRIBUTE01","Treść","Wstępne wykonanie","Ustawa","Przewidywane ","Projekt","Projekt","Projekt","Projekt"]
[null,null,null,null," / wykonanie *)","budżetowa","wykonanie","planu ","planu ","planu ","planu "]
[null,null,null,null," ……. r.","na ……... r.","w ………. r.","na ……….. r.","na ………... r.","na ……….. r.","na …….. r."]
[null,null,null,null,"(rok N-1)","(rok N)","(rok N)","(rok N+1)","(rok N+2)","(rok N+3)","(rok N+4)"]
[null,null,null,null,null,"w tysiącach złotych"]
[1,null,null,2,3,4,5,6,7,8,9]
["I","PFPFC.A1_1","PFPFPFC.A1_1","Zadania wynikające z ustawy tworzącej fundusz celowy"]
["1.","PFPFC.POZ_A_1","PFPFC.POZ_A_1"]
["2.","PFPFC.POZ_A_1","PFPFC.POZ_A_1"]
["3.","PFPFC.POZ_A_1","PFPFC.POZ_A_1"]
[null,"PFPFC.POZ_A_1","PFPFC.POZ_A_1"]
[null,"PFPFC.POZ_A_1","PFPFC.POZ_A_1"]
[null,"PFPFC.POZ_A_1","PFPFC.POZ_A_1"]
[null,"PFPFC.POZ_A_1","PFPFC.POZ_A_1"]
[null,"PFPFC.POZ_A_1","PFPFC.POZ_A_1"]
[null,"PFPFC.POZ_A_1","PFPFC.POZ_A_1"]
[null,"PFPFC.POZ_A_1","PFPFC.POZ_A_1"]
[null,"PFPFC.POZ_A_1","PFPFC.POZ_A_1"]
[null,"PFPFC.POZ_A_1","PFPFC.POZ_A_1"]
[null,"PFPFC.POZ_A_1","PFPFC.POZ_A_1"]
[null,"PFPFC.POZ_A_1","PFPFC.POZ_A_1"]
[null,"PFPFC.POZ_A_1","PFPFC.POZ_A_1"]
[null,"PFPFC.POZ_A_1","PFPFC.POZ_A_1"]
[null,"PFPFC.POZ_A_1","PFPFC.POZ_A_1"]
[null,"PFPFC.POZ_A_1","PFPFC.POZ_A_1"]
[null,"PFPFC.POZ_A_1","PFPFC.POZ_A_1"]
[null,"PFPFC.POZ_A_1","PFPFC.POZ_A_1"]
[null,"PFPFC.POZ_A_1","PFPFC.POZ_A_1"]
[null,"PFPFC.POZ_A_1","PFPFC.POZ_A_1"]
[null,"PFPFC.POZ_A_1","PFPFC.POZ_A_1"]
[null,"PFPFC.POZ_A_1","PFPFC.POZ_A_1"]
[null,"PFPFC.POZ_A_1","PFPFC.POZ_A_1"]
[null,"PFPFC.POZ_A_1","PFPFC.POZ_A_1"]
[null,"PFPFC.POZ_A_1","PFPFC.POZ_A_1"]
[null,"PFPFC.POZ_A_1","PFPFC.POZ_A_1"]
[null,"PFPFC.POZ_A_1","PFPFC.POZ_A_1"]
[null,"PFPFC.POZ_A_1","PFPFC.POZ_A_1"]
[null,"PFPFC.POZ_A_1","PFPFC.POZ_A_1"]
[null,"PFPFC.POZ_A_1","PFPFC.POZ_A_1"]
[null,"PFPFC.POZ_A_1","PFPFC.POZ_A_1"]
[null,"PFPFC.POZ_A_1","PFPFC.POZ_A_1"]
[null,"PFPFC.POZ_A_1","PFPFC.POZ_A_1"]
[null,"PFPFC.POZ_A_1","PFPFC.POZ_A_1"]
[null,"PFPFC.POZ_A_1","PFPFC.POZ_A_1"]
[null,"PFPFC.POZ_A_1","PFPFC.POZ_A_1"]
[null,"PFPFC.POZ_A_1","PFPFC.POZ_A_1"]
[null,"PFPFC.POZ_A_1","PFPFC.POZ_A_1"]
[null,"PFPFC.POZ_A_1","PFPFC.POZ_A_1"]
[null,"PFPFC.POZ_A_1","PFPFC.POZ_A_1"]
[null,"PFPFC.POZ_A_1","PFPFC.POZ_A_1"]
[null,"PFPFC.POZ_A_1","PFPFC.POZ_A_1"]
[null,"PFPFC.POZ_A_1","PFPFC.POZ_A_1"]
[null,"PFPFC.POZ_A_1","PFPFC.POZ_A_1"]
[null,"PFPFC.POZ_A_1","PFPFC.POZ_A_1"]
[null,"PFPFC.POZ_A_1","PFPFC.POZ_A_1"]
[null,"PFPFC.POZ_A_1","PFPFC.POZ_A_1"]
[null,"PFPFC.POZ_A_1","PFPFC.POZ_A_1"]
[null,"PFPFC.POZ_A_1","PFPFC.POZ_A_1"]
[null,"PFPFC.POZ_A_1","PFPFC.POZ_A_1"]
[null,"PFPFC.POZ_A_1","PFPFC.POZ_A_1"]
[null,"PFPFC.POZ_A_1","PFPFC.POZ_A_1"]
[null,"PFPFC.POZ_A_1","PFPFC.POZ_A_1"]
[null,"PFPFC.POZ_A_1","PFPFC.POZ_A_1"]
[null,"PFPFC.POZ_A_1","PFPFC.POZ_A_1"]
[null,"PFPFC.POZ_A_1","PFPFC.POZ_A_1"]
[null,"PFPFC.POZ_A_1","PFPFC.POZ_A_1"]
[null,"PFPFC.POZ_A_1","PFPFC.POZ_A_1"]
[null,"PFPFC.POZ_A_1","PFPFC.POZ_A_1"]
[null,"PFPFC.POZ_A_1","PFPFC.POZ_A_1"]
[null,"PFPFC.POZ_A_1","PFPFC.POZ_A_1"]
[null,"PFPFC.POZ_A_1","PFPFC.POZ_A_1"]
[null,"PFPFC.POZ_A_1","PFPFC.POZ_A_1"]
[null,"PFPFC.POZ_A_1","PFPFC.POZ_A_1"]
[null,"PFPFC.POZ_A_1","PFPFC.POZ_A_1"]
[null,"PFPFC.POZ_A_1","PFPFC.POZ_A_1"]
[null,"PFPFC.POZ_A_1","PFPFC.POZ_A_1"]
[null,"PFPFC.POZ_A_1","PFPFC.POZ_A_1"]
[null,"PFPFC.POZ_A_1","PFPFC.POZ_A_1"]
[null,"PFPFC.POZ_A_1","PFPFC.POZ_A_1"]
[null,"PFPFC.POZ_A_1","PFPFC.POZ_A_1"]
[null,"PFPFC.POZ_A_1","PFPFC.POZ_A_1"]
[null,"PFPFC.POZ_A_1","PFPFC.POZ_A_1"]
[null,"PFPFC.POZ_A_1","PFPFC.POZ_A_1"]
[null,"PFPFC.POZ_A_1","PFPFC.POZ_A_1"]
[null,"PFPFC.POZ_A_1","PFPFC.POZ_A_1"]
[null,"PFPFC.POZ_A_1","PFPFC.POZ_A_1"]
[null,"PFPFC.POZ_A_1","PFPFC.POZ_A_1"]
[null,"PFPFC.POZ_A_1","PFPFC.POZ_A_1"]
[null,"PFPFC.POZ_A_1","PFPFC.POZ_A_1"]
[null,"PFPFC.POZ_A_1","PFPFC.POZ_A_1"]
[null,"PFPFC.POZ_A_1","PFPFC.POZ_A_1"]
[null,"PFPFC.POZ_A_1","PFPFC.POZ_A_1"]
[null,"PFPFC.POZ_A_1","PFPFC.POZ_A_1"]
[null,"PFPFC.POZ_A_1","PFPFC.POZ_A_1"]
[null,"PFPFC.POZ_A_1","PFPFC.POZ_A_1"]
[null,"PFPFC.POZ_A_1","PFPFC.POZ_A_1"]
[null,"PFPFC.POZ_A_1","PFPFC.POZ_A_1"]
[null,"PFPFC.POZ_A_1","PFPFC.POZ_A_1"]
[null,"PFPFC.POZ_A_1","PFPFC.POZ_A_1"]
[null,"PFPFC.POZ_A_1","PFPFC.POZ_A_1"]
[null,"PFPFC.POZ_A_1","PFPFC.POZ_A_1"]
[null,"PFPFC.POZ_A_1","PFPFC.POZ_A_1"]
[null,"PFPFC.POZ_A_1","PFPFC.POZ_A_1"]
[null,"PFPFC.POZ_A_1","PFPFC.POZ_A_1"]
[null,"PFPFC.POZ_A_1","PFPFC.POZ_A_1"]
[null,"PFPFC.POZ_A_1","PFPFC.POZ_A_1"]
[null,"PFPFC.POZ_A_1","PFPFC.POZ_A_1"]
[null,"PFPFC.POZ_A_1","PFPFC.POZ_A_1"]
[null,"PFPFC.POZ_A_1","PFPFC.POZ_A_1"]
[null,"PFPFC.POZ_A_1","PFPFC.POZ_A_1"]
[null,"PFPFC.POZ_A_1","PFPFC.POZ_A_1"]
[null,"PFPFC.POZ_A_1","PFPFC.POZ_A_1"]
[null,"PFPFC.POZ_A_1","PFPFC.POZ_A_1"]
[null,"PFPFC.POZ_A_1","PFPFC.POZ_A_1"]
[null,"PFPFC.POZ_A_1","PFPFC.POZ_A_1"]
[null,"PFPFC.POZ_A_1","PFPFC.POZ_A_1"]
[null,"PFPFC.POZ_A_1","PFPFC.POZ_A_1"]
[null,"PFPFC.POZ_A_1","PFPFC.POZ_A_1"]
[null,"PFPFC.POZ_A_1","PFPFC.POZ_A_1"]
[null,"PFPFC.POZ_A_1","PFPFC.POZ_A_1"]
[null,"PFPFC.POZ_A_1","PFPFC.POZ_A_1"]
[null,"PFPFC.POZ_A_1","PFPFC.POZ_A_1"]
[null,"PFPFC.POZ_A_1","PFPFC.POZ_A_1"]
[null,"PFPFC.POZ_A_1","PFPFC.POZ_A_1"]
[null,"PFPFC.POZ_A_1","PFPFC.POZ_A_1"]
[null,"PFPFC.POZ_A_1","PFPFC.POZ_A_1"]
[null,"PFPFC.POZ_A_1","PFPFC.POZ_A_1"]
[null,"PFPFC.POZ_A_1","PFPFC.POZ_A_1"]
[null,"PFPFC.POZ_A_1","PFPFC.POZ_A_1"]
[null,"PFPFC.POZ_A_1","PFPFC.POZ_A_1"]
[null,"PFPFC.POZ_A_1","PFPFC.POZ_A_1"]
[null,"PFPFC.POZ_A_1","PFPFC.POZ_A_1"]
[null,"PFPFC.POZ_A_1","PFPFC.POZ_A_1"]
[null,"PFPFC.POZ_A_1","PFPFC.POZ_A_1"]
[null,"PFPFC.POZ_A_1","PFPFC.POZ_A_1"]
[null,"PFPFC.POZ_A_1","PFPFC.POZ_A_1"]
[null,"PFPFC.POZ_A_1","PFPFC.POZ_A_1"]
[null,"PFPFC.POZ_A_1","PFPFC.POZ_A_1"]
[null,"PFPFC.POZ_A_1","PFPFC.POZ_A_1"]
[null,"PFPFC.POZ_A_1","PFPFC.POZ_A_1"]
[null,"PFPFC.POZ_A_1","PFPFC.POZ_A_1"]
[null,"PFPFC.POZ_A_1","PFPFC.POZ_A_1"]
[]
[]
[]
["Część B  Plan finansowy w układzie memoriałowym"]
["Lp.","CHAPTER_CODE","UATTRIBUTE01","Treść","Paragrafy 1)","Wstępne wykonanie","Ustawa","Przewidywane ","Projekt","Projekt","Projekt","Projekt"]
[null,null,null,null,null," / wykonanie *)","budżetowa","wykonanie","planu ","planu ","planu ","planu "]
[null,null,null,null,null," ……. r.","na ……... r.","w ………. r.","na ……….. r.","na ………... r.","na ……….. r.","na …….. r."]
[null,null,null,null,null,"(rok N-1)","(rok N)","(rok N)","(rok N+1)","(rok N+2)","(rok N+3)","(rok N+4)"]
[null,null,null,null,null,"w tysiącach złotych"]
[1,null,null,2,3,4,5,6,7,8,9,10]
["I","PFPFC.B1_1","PFPFC.B1_1.I","Stan funduszu na początek roku","x"]
["x","PFPFC.B1_1","PFPFC.B1_1.I.0","z tego:","x","x","x","x","x","x","x","x"]
[1,"PFPFC.B1_1","PFPFC.B1_1.I.1","Środki pieniężne 2)","x"]
[2,"PFPFC.B1_1","PFPFC.B1_1.I.2","Należności ","x"]
["2.1","PFPFC.B1_1","PFPFC.B1_1.I.2.1","w tym: z tytułu udzielonych pożyczek","x"]
["2.1.1","PFPFC.B1_1","PFPFC.B1_1.I.2.1.1","w tym: od jednostek sektora finansów publicznych","x"]
[3,"PFPFC.B1_1","PFPFC.B1_1.I.3","Zobowiązania, z tego:","x",{"$f":"SUM(F175,F177)","v":0},{"$f":"SUM(G175,G177)","v":0},0,0,0,0,0]
["3.1","PFPFC.B1_1","PFPFC.B1_1.I.3.1","z tytułu kredytu","x"]
["3.1.1","PFPFC.B1_1","PFPFC.B1_1.I.3.1.1","w tym: wymagalne"]
["3.2","PFPFC.B1_1","PFPFC.B1_1.I.3.2","pozostałe","x"]
["3.2.1","PFPFC.B1_1","PFPFC.B1_1.I.3.2.1","w tym: wymagalne","x"]
[4,"PFPFC.POZ_B_1","PFPFC.POZ_B_1"]
[5,"PFPFC.POZ_B_1","PFPFC.POZ_B_1"]
[6,"PFPFC.POZ_B_1","PFPFC.POZ_B_1"]
["II","PFPFC.B1_2","PFPFC.B1_2.II","Przychody ","x",{"$f":"SUM(F183,F192,F193,F195,F198,F203,F204,F205,F213)","v":0},{"$f":"SUM(G183,G192,G193,G195,G198,G203,G204,G205,G213)","v":0},0,0,0,0,0]
[1,"PFPFC.B1_2","PFPFC.B1_2.II.1","Dotacje z budżetu państwa, z tego:","x",{"$f":"SUM(F184,F187,F189,F191)","v":0},{"$f":"SUM(G184,G187,G189,G191)","v":0},0,0,0,0,0]
["1.1","PFPFC.B1_2","PFPFC.B1_2.II.1.1","dla państwowego funduszu celowego","243"]
["1.1.1","PFPFC.POZ_B_2","PFPFC.POZ_B_2"]
["1.1.2","PFPFC.POZ_B_2","PFPFC.POZ_B_2"]
["1.2","PFPFC.B1_3","PFPFC.B1_3.II.1.2","celowe na finansowanie projektów z udziałem środków UE - bieżące",200]
["1.2.1","PFPFC.B1_3","PFPFC.B1_3.II.1.2.1","w tym: na współfinansowanie 3)"]
["1.3","PFPFC.B1_3","PFPFC.B1_3.II.1.3","celowe na finansowanie projektów z udziałem środków UE - majątkowe",620]
["1.3.1","PFPFC.B1_3","PFPFC.B1_3.II.1.3.1","w tym: na współfinansowanie 3)"]
["1.4","PFPFC.B1_3","PFPFC.B1_3.II.1.4","- na inwestycje 4)",622]
[2,"PFPFC.B1_3","PFPFC.B1_3.II.2","Środki otrzymane z Unii Europejskiej 5)"]
[3,"PFPFC.B1_3","PFPFC.B1_3.II.3","Dotacje z innych funduszy, w tym:","244, 626"]
["3.1","PFPFC.B1_3","PFPFC.B1_3.II.3.1","- na inwestycje i zakupy inwestycyjne 4)",626]
[4,"PFPFC.B1_3","PFPFC.B1_3.II.4","Składki i opłaty","040, 052, 053, 054,063,064, 069, 082, 085"]
["4.1.","PFPFC.POZ_B_3","PFPFC.POZ_B_3"]
["4.2.","PFPFC.POZ_B_3","PFPFC.POZ_B_3"]
[5,"PFPFC.B1_4","PFPFC.B1_4.II.5","Przelewy redystrybucyjne, z tego: 6)",296,{"$f":"SUM(F199:F202)","v":0},{"$f":"SUM(G199:G202)","v":0},0,0,0,0,0]
["5.1","PFPFC.B1_4","PFPFC.B1_4.II.5.1","Odpis z funduszu emerytalno-rentowego7) "]
["5.2","PFPFC.B1_4","PFPFC.B1_4.II.5.2","Odpis z funduszu składkowego7) 8)"]
["5.3","PFPFC.POZ_B_4","PFPFC.POZ_B_4"]
["5.4","PFPFC.POZ_B_4","PFPFC.POZ_B_4"]
[6,"PFPFC.B1_5","PFPFC.B1_5.II.6","Środki z prywatyzacji",106]
[7,"PFPFC.B1_5","PFPFC.B1_5.II.7","Dotacje od jednostek samorządu terytorialnego"]
[8,"PFPFC.B1_5","PFPFC.B1_5.II.8","Wpłaty od jednostek na państwowy fundusz celowy, z tego:","x",{"$f":"SUM(F206:F207)","v":0},{"$f":"SUM(G206:G207)","v":0},0,0,0,0,0]
["8.1","PFPFC.B1_5","PFPFC.B1_5.II.8.1","- bieżące",230]
["8.2","PFPFC.B1_5","PFPFC.B1_5.II.8.2","- majątkowe",617]
["8.2.1","PFPFC.POZ_B_41","PFPFC.POZ_B_41"]
["8.2.2","PFPFC.POZ_B_41","PFPFC.POZ_B_41"]
["8.2.3","PFPFC.POZ_B_41","PFPFC.POZ_B_41"]
["8.2.4","PFPFC.POZ_B_41","PFPFC.POZ_B_41"]
["8.2.5","PFPFC.POZ_B_41","PFPFC.POZ_B_41"]
[9,"PFPFC.B1_51","PFPFC.B1_51.II.9","Pozostałe przychody, w tym:","x"]
["9.1","PFPFC.B1_51","PFPFC.B1_51.II.9.1","z tytułu refundacji i zwrotów:7)"]
["9.1.1","PFPFC.B1_51","PFPFC.B1_51.II.9.1.1"," - refundacja kosztów obsługi:"]
["9.1.1.1","PFPFC.B1_51","PFPFC.B1_51.II.9.1.1.1","      - świadczeń zleconych do wypłaty"]
["9.1.1.2","PFPFC.B1_51","PFPFC.B1_51.II.9.1.1.2","      - rent socjalnych "]
["9.1.1.3","PFPFC.B1_51","PFPFC.B1_51.II.9.1.1.3","      - refundacja przez ZUS kosztów obsługi tzw. \n        świadczeń zbiegowych"]
["9.1.2","PFPFC.B1_51","PFPFC.B1_51.II.9.1.2"," - z tytułu zwrotu kosztów poboru i ewidencjonowania \n   składek na ubezpieczenie zdrowotne"]
["9.2","PFPFC.B1_51","PFPFC.B1_51.II.9.2","odsetki "," 092"]
["9.3","PFPFC.B1_51","PFPFC.B1_51.II.9.3","inne"]
["9.3.1","PFPFC.POZ_B_5","PFPFC.POZ_B_5"]
["9.3.2","PFPFC.POZ_B_5","PFPFC.POZ_B_5"]
["9.3.3","PFPFC.POZ_B_5","PFPFC.POZ_B_5"]
["9.3.4","PFPFC.POZ_B_5","PFPFC.POZ_B_5"]
["9.3.5","PFPFC.POZ_B_5","PFPFC.POZ_B_5"]
["III","PFPFC.B1_6","PFPFC.B1_6.III","Koszty realizacji zadań","x",{"$f":"SUM(F228,F229,F230,F238,F239,F326,F333)","v":0},0,0,0,0,0,0]
[1,"PFPFC.B1_6","PFPFC.B1_6.III.1","Dotacje na realizację zadań bieżących","244, 245"]
[2,"PFPFC.B1_6","PFPFC.B1_6.III.2","Środki na realizację zadań bieżących przekazane innym podmiotom","269, 289, ... **)"]
[3,"PFPFC.B1_6","PFPFC.B1_6.III.3","Transfery na rzecz ludności, z tego na: 6)",null,{"$f":"SUM(F231:F237)","v":0},{"$f":"SUM(G231:G237)","v":0},0,0,0,0,0]
["3.1","PFPFC.POZ_B_6","PFPFC.POZ_B_6"]
["3.2","PFPFC.POZ_B_6","PFPFC.POZ_B_6"]
["3.3","PFPFC.POZ_B_6","PFPFC.POZ_B_6"]
["3.4","PFPFC.POZ_B_6","PFPFC.POZ_B_6"]
["3.5","PFPFC.POZ_B_6","PFPFC.POZ_B_6"]
["3.6","PFPFC.POZ_B_6","PFPFC.POZ_B_6"]
["3.7","PFPFC.POZ_B_6","PFPFC.POZ_B_6"]
[4,"PFPFC.B1_7","PFPFC.B1_7.III.4","Środki z Unii Europejskiej 5)"]
[5,"PFPFC.B1_7","PFPFC.B1_7.III.5","Koszty własne","x",{"$f":"SUM(F240,F244,F245:F248)","v":0},{"$f":"SUM(G240,G244,G245:G248)","v":0},0,0,0,0,0]
["5.1","PFPFC.B1_7","PFPFC.B1_7.III.5.1","wynagrodzenia, z tego:","401-410, 417, 418",{"$f":"SUM(F241:F243)","v":0},{"$f":"SUM(G241:G243)","v":0},0,0,0,0,0]
["5.1.1","PFPFC.B1_7","PFPFC.B1_7.III.5.1.1","   - osobowe "]
["5.1.2","PFPFC.B1_7","PFPFC.B1_7.III.5.1.2","   - bezosobowe9)"]
["5.1.3","PFPFC.B1_7","PFPFC.B1_7.III.5.1.3","   - pozostałe "]
["5.2","PFPFC.B1_7","PFPFC.B1_7.III.5.2","składki na ubezpieczenia społeczne",411]
["5.3","PFPFC.B1_7","PFPFC.B1_7.III.5.3","składki na Fundusz Pracy oraz Fundusz Solidarnościowy",412]
["5.4","PFPFC.B1_7","PFPFC.B1_7.III.5.4","składki na Fundusz Emerytur Pomostowych",478]
["5.5","PFPFC.B1_7","PFPFC.B1_7.III.5.5","zakup usług"]
["5.6","PFPFC.B1_7","PFPFC.B1_7.III.5.6","pozostałe, z tego:","x",{"$f":"SUM(F249:F253)","v":0},{"$f":"SUM(G249:G253)","v":0},0,0,0,0,{"$f":"SUM(L249:L253)","v":0}]
["5.6.1","PFPFC.B1_7","PFPFC.B1_7.III.5.6.1","   - koszty poboru składki","x"]
["5.6.2","PFPFC.B1_7","PFPFC.B1_7.III.5.6.2","   - amortyzacja (umorzenia)"]
["5.6.3","PFPFC.B1_7","PFPFC.B1_7.III.5.6.3","   - odsetki od kredytów i pożyczek","x"]
["5.6.4","PFPFC.B1_7","PFPFC.B1_7.III.5.6.4","   - wpłaty do budżetu państwa10)",242]
["5.6.5","PFPFC.B1_7","PFPFC.B1_7.III.5.6.5","   - inne***)","x"]
[null,"PFPFC.POZ_B_7","PFPFC.POZ_B_7"]
[null,"PFPFC.POZ_B_7","PFPFC.POZ_B_7"]
[null,"PFPFC.POZ_B_7","PFPFC.POZ_B_7"]
[null,"PFPFC.POZ_B_7","PFPFC.POZ_B_7"]
[null,"PFPFC.POZ_B_7","PFPFC.POZ_B_7"]
[null,"PFPFC.POZ_B_7","PFPFC.POZ_B_7"]
[null,"PFPFC.POZ_B_7","PFPFC.POZ_B_7"]
[null,"PFPFC.POZ_B_7","PFPFC.POZ_B_7"]
[null,"PFPFC.POZ_B_7","PFPFC.POZ_B_7"]
[null,"PFPFC.POZ_B_7","PFPFC.POZ_B_7"]
[null,"PFPFC.POZ_B_7","PFPFC.POZ_B_7"]
[null,"PFPFC.POZ_B_7","PFPFC.POZ_B_7"]
[null,"PFPFC.POZ_B_7","PFPFC.POZ_B_7"]
[null,"PFPFC.POZ_B_7","PFPFC.POZ_B_7"]
[null,"PFPFC.POZ_B_7","PFPFC.POZ_B_7"]
[null,"PFPFC.POZ_B_7","PFPFC.POZ_B_7"]
[null,"PFPFC.POZ_B_7","PFPFC.POZ_B_7"]
[null,"PFPFC.POZ_B_7","PFPFC.POZ_B_7"]
[null,"PFPFC.POZ_B_7","PFPFC.POZ_B_7"]
[null,"PFPFC.POZ_B_7","PFPFC.POZ_B_7"]
[null,"PFPFC.POZ_B_7","PFPFC.POZ_B_7"]
[null,"PFPFC.POZ_B_7","PFPFC.POZ_B_7"]
[null,"PFPFC.POZ_B_7","PFPFC.POZ_B_7"]
[null,"PFPFC.POZ_B_7","PFPFC.POZ_B_7"]
[null,"PFPFC.POZ_B_7","PFPFC.POZ_B_7"]
[null,"PFPFC.POZ_B_7","PFPFC.POZ_B_7"]
[null,"PFPFC.POZ_B_7","PFPFC.POZ_B_7"]
[null,"PFPFC.POZ_B_7","PFPFC.POZ_B_7"]
[null,"PFPFC.POZ_B_7","PFPFC.POZ_B_7"]
[null,"PFPFC.POZ_B_7","PFPFC.POZ_B_7"]
[null,"PFPFC.POZ_B_7","PFPFC.POZ_B_7"]
[null,"PFPFC.POZ_B_7","PFPFC.POZ_B_7"]
[null,"PFPFC.POZ_B_7","PFPFC.POZ_B_7"]
[null,"PFPFC.POZ_B_7","PFPFC.POZ_B_7"]
[null,"PFPFC.POZ_B_7","PFPFC.POZ_B_7"]
[null,"PFPFC.POZ_B_7","PFPFC.POZ_B_7"]
[null,"PFPFC.POZ_B_7","PFPFC.POZ_B_7"]
[null,"PFPFC.POZ_B_7","PFPFC.POZ_B_7"]
[null,"PFPFC.POZ_B_7","PFPFC.POZ_B_7"]
[null,"PFPFC.POZ_B_7","PFPFC.POZ_B_7"]
[null,"PFPFC.POZ_B_7","PFPFC.POZ_B_7"]
[null,"PFPFC.POZ_B_7","PFPFC.POZ_B_7"]
[null,"PFPFC.POZ_B_7","PFPFC.POZ_B_7"]
[null,"PFPFC.POZ_B_7","PFPFC.POZ_B_7"]
[null,"PFPFC.POZ_B_7","PFPFC.POZ_B_7"]
[null,"PFPFC.POZ_B_7","PFPFC.POZ_B_7"]
[null,"PFPFC.POZ_B_7","PFPFC.POZ_B_7"]
[null,"PFPFC.POZ_B_7","PFPFC.POZ_B_7"]
[null,"PFPFC.POZ_B_7","PFPFC.POZ_B_7"]
[null,"PFPFC.POZ_B_7","PFPFC.POZ_B_7"]
[null,"PFPFC.POZ_B_7","PFPFC.POZ_B_7"]
[null,"PFPFC.POZ_B_7","PFPFC.POZ_B_7"]
[null,"PFPFC.POZ_B_7","PFPFC.POZ_B_7"]
[null,"PFPFC.POZ_B_7","PFPFC.POZ_B_7"]
[null,"PFPFC.POZ_B_7","PFPFC.POZ_B_7"]
[null,"PFPFC.POZ_B_7","PFPFC.POZ_B_7"]
[null,"PFPFC.POZ_B_7","PFPFC.POZ_B_7"]
[null,"PFPFC.POZ_B_7","PFPFC.POZ_B_7"]
[null,"PFPFC.POZ_B_7","PFPFC.POZ_B_7"]
[null,"PFPFC.POZ_B_7","PFPFC.POZ_B_7"]
[null,"PFPFC.POZ_B_7","PFPFC.POZ_B_7"]
[null,"PFPFC.POZ_B_7","PFPFC.POZ_B_7"]
[null,"PFPFC.POZ_B_7","PFPFC.POZ_B_7"]
[null,"PFPFC.POZ_B_7","PFPFC.POZ_B_7"]
[null,"PFPFC.POZ_B_7","PFPFC.POZ_B_7"]
[null,"PFPFC.POZ_B_7","PFPFC.POZ_B_7"]
[null,"PFPFC.POZ_B_7","PFPFC.POZ_B_7"]
[null,"PFPFC.POZ_B_7","PFPFC.POZ_B_7"]
[null,"PFPFC.POZ_B_7","PFPFC.POZ_B_7"]
[null,"PFPFC.POZ_B_7","PFPFC.POZ_B_7"]
[null,"PFPFC.POZ_B_7","PFPFC.POZ_B_7"]
[null,"PFPFC.POZ_B_7","PFPFC.POZ_B_7"]
[6,"PFPFC.B1_71","PFPFC.B1_71.III.6","Koszty inwestycyjne, w tym:","x"]
["6.1","PFPFC.B1_71","PFPFC.B1_71.III.6.1","dotacje inwestycyjne","626, 627"]
["6.1.1","PFPFC.POZ_B_71","PFPFC.POZ_B_71"]
["6.1.2","PFPFC.POZ_B_71","PFPFC.POZ_B_71"]
["6.2","PFPFC.B1_72","PFPFC.B1_72.III.6.2","Środki przekazane innym podmiotom na inwestycje","667, ... **)"]
["6.2.1","PFPFC.POZ_B_72","PFPFC.POZ_B_72"]
["6.2.2","PFPFC.POZ_B_72","PFPFC.POZ_B_72"]
[7,"PFPFC.B1_8","PFPFC.B1_8.III.7","Przelewy redystrybucyjne, z tego na:6)",296,{"$f":"SUM(F334:F339)","v":0},{"$f":"SUM(G334:G339)","v":0},0,0,0,0,0]
["7.1","PFPFC.POZ_B_8","PFPFC.POZ_B_8"]
["7.2","PFPFC.POZ_B_8","PFPFC.POZ_B_8"]
["7.3","PFPFC.POZ_B_8","PFPFC.POZ_B_8"]
["7.4","PFPFC.POZ_B_8","PFPFC.POZ_B_8"]
["7.5","PFPFC.POZ_B_8","PFPFC.POZ_B_8"]
["7.6","PFPFC.POZ_B_8","PFPFC.POZ_B_8"]
["IV","PFPFC.B1_9","PFPFC.B1_9.IV","Stan funduszu na koniec roku (I + II - III)","x",{"$f":"F168+F182-F227","v":0},0,0,0,0,0,0]
["x","PFPFC.B1_9","PFPFC.B1_9.IV.0","z tego:","x","x","x","x","x","x","x","x"]
[1,"PFPFC.B1_9","PFPFC.B1_9.IV.1","Środki pieniężne 2)","x"]
[2,"PFPFC.B1_9","PFPFC.B1_9.IV.2","Należności ","x"]
["2.1","PFPFC.B1_9","PFPFC.B1_9.IV.2.1","w tym: z tytułu udzielonych pożyczek","x"]
["2.1.1","PFPFC.B1_9","PFPFC.B1_9.IV.2.1.1","w tym: od jednostek sektora finansów publicznych","x"]
[3,"PFPFC.B1_9","PFPFC.B1_9.IV.3","Zobowiązania, z tego:","x",{"$f":"SUM(F347,F349)","v":0},{"$f":"SUM(G347,G349)","v":0},0,0,0,0,0]
["3.1","PFPFC.B1_9","PFPFC.B1_9.IV.3.1","z tytułu kredytu","x"]
["3.1.1","PFPFC.B1_9","PFPFC.B1_9.IV.3.1.1","w tym: wymagalne","x"]
["3.2","PFPFC.B1_9","PFPFC.B1_9.IV.3.2","pozostałe","x"]
["3.2.1","PFPFC.B1_9","PFPFC.B1_9.IV.3.2.1","w tym: wymagalne","x"]
[4,"PFPFC.POZ_B_9","PFPFC.POZ_B_9"]
[5,"PFPFC.POZ_B_9","PFPFC.POZ_B_9"]
[6,"PFPFC.POZ_B_9","PFPFC.POZ_B_9"]
[]
["*) Niepotrzebne skreslić."]
["**) Należy wskazać właściwe paragrafy zgodnie z obowiązującym na dzień złożenia formularza rozporządzeniem Ministra Finansów z dnia 2 marca 2010 r. w sprawie szczegółowej klasyfikacji, dochodów, wydatków, przychodów "]
["  i rozchodów oraz środków pochodzących ze źródeł zagranicznych (Dz. U. z 2014 poz. 1053, z późn. zm.)."]
["***) W tej pozycji od 2021 roku należy ująć również wpłaty na pracownicze plany kapitałowe."]
["1) Klasyfikacja paragrafów wydatków jest czterocyfrowa; czwartą cyfrą jest odpowiednia cyfra od 1 do 9 lub cyfra 0, przychody należy ujmować"]
["   stosując czwarte cyfry właściwe dla klasyfikacji dochodów. W przypadku wystąpienia dochodów lub wydatków w różnych paragrafach, należy każdy paragraf ująć odrębnie w oddzielnym wierszu. "]
["2) Należy podać wartość środków pieniężnych w kasie i na rachunkach bankowych (w tym wolnych środków finansowych przekazanych w zarządzanie lub depozyt u Ministra Finansów)."]
["3) W tej pozycji należy wykazać środki z czwartą cyfrą 2, 6 i 9."]
["4) Dotacje na inwestycje i zakupy inwestycyjne należy wykazać w wysokości równoważącej amortyzację, chyba że przepisy szczególne stanowią inaczej."]
["5) W pozycji tej należy wykazać środki w paragrafach z czwartą cyfrą 1, 5, 7 i 8."]
["6) Należy wymienić tytuły przelewów / transferów."]
["7) Wypełnia Fundusz Administracyjny."]
["8) Wypełnia Fundusz Prewencji i Rehabilitacji."]
["9) W pozycji tej ujmuje się również honoraria."]
["10) Fundusz Gwarantowanych Świadczeń Pracowniczych wykazuje kwoty związane z przejęciem przez ministra właściwego do spraw pracy zadań i pracowników Krajowego Biura Funduszu."]
[]
[]
[]
["Część C  Dane w układzie kasowym"]
["Lp.",null,null,"Treść","Paragrafy1)","Wstępne wykonanie","Ustawa","Przewidywane ","Projekt","Projekt","Projekt","Projekt"]
[null,null,null,null,null," / wykonanie *)","budżetowa","wykonanie","planu ","planu ","planu ","planu "]
[null,null,null,null,null," ……. r.","na ……... r.","w ………. r.","na ……….. r.","na ………... r.","na ……….. r.","na …….. r."]
[null,null,null,null,null,"(rok N-1)","(rok N)","(rok N)","(rok N+1)","(rok N+2)","(rok N+3)","(rok N+4)"]
[null,null,null,null,null,"w tysiącach złotych"]
[1,null,null,2,3,4,5,6,7,8,9,10]
["I","PFPFC.C1_1","PFPFC.C1_1.I","Wpływy","x",{"$f":"SUM(F381,F388,F389,F391,F392,F397,F398,F399,F400,F401,F402,F410)","v":0},{"$f":"SUM(G381,G388,G389,G391,G392,G397,G398,G399,G400,G401,G402,G410)","v":0},0,0,0,0,0]
[1,"PFPFC.C1_1","PFPFC.C1_1.I.1","Dotacje z budżetu państwa, z tego:","x",{"$f":"SUM(F382,F383,F385,F387)","v":0},{"$f":"SUM(G382,G383,G385,G387)","v":0},0,0,0,0,0]
["1.1","PFPFC.C1_1","PFPFC.C1_1.I.1.1","dla państwowego funduszu celowego",243]
["1.2","PFPFC.C1_1","PFPFC.C1_1.I.1.2","celowe na finansowanie projektów z udziałem środków UE - bieżące",200]
["1.2.1","PFPFC.C1_1","PFPFC.C1_1.I.1.2.1","w tym: na współfinansowanie 3)"]
["1.3","PFPFC.C1_1","PFPFC.C1_1.I.1.3","celowe na finansowanie projektów z udziałem środków UE - majątkowe",620]
["1.3.1","PFPFC.C1_1","PFPFC.C1_1.I.1.3.1","w tym: na współfinansowanie 3)"]
["1.4","PFPFC.C1_1","PFPFC.C1_1.I.1.4","na inwestycje 12)",622]
[2,"PFPFC.C1_1","PFPFC.C1_1.I.2","Środki otrzymane z Unii Europejskiej 5)"]
[3,"PFPFC.C1_1","PFPFC.C1_1.I.3","Dotacje z innych funduszy, w tym:","244, 626"]
["3.1","PFPFC.C1_1","PFPFC.C1_1.I.3.1","na inwestycje i zakupy inwestycyjne 11)",626]
[4,"PFPFC.C1_1","PFPFC.C1_1.I.4","Składki i opłaty","040, 052, 053, 054, 063, 064, 069, 082, 085"]
[5,"PFPFC.C1_1","PFPFC.C1_1.I.5","Przelewy redystrybucyjne, w tym:6)",296]
["5.1","PFPFC.C1_1","PFPFC.C1_1.I.5.1","Odpis z funduszu emerytalno-rentowego7) "]
["5.2","PFPFC.C1_1","PFPFC.C1_1.I.5.2","Odpis z funduszu składkowego7) 8)"]
["5.3","PFPFC.POZ_C_1","PFPFC.POZ_C_1"]
["5.4","PFPFC.POZ_C_1","PFPFC.POZ_C_1"]
[6,"PFPFC.C1_2","PFPFC.C1_2.I.6","Środki z prywatyzacji",106]
[7,"PFPFC.C1_2","PFPFC.C1_2.I.7","Zaciągnięte kredyty i pożyczki","x"]
[8,"PFPFC.C1_2","PFPFC.C1_2.I.8","Spłaty udzielonych j.s.t. pożyczek ","x"]
[9,"PFPFC.C1_2","PFPFC.C1_2.I.9","Odsetki od udzielonych pożyczek j.s.t.","092"]
[10,"PFPFC.C1_2","PFPFC.C1_2.I.10","Dotacje od jednostek samorządu terytorialnego","x"]
[11,"PFPFC.C1_2","PFPFC.C1_2.I.11","Wpłaty od jednostek na państwowy fundusz celowy, z tego:","x"]
["11.1","PFPFC.C1_2","PFPFC.C1_2.I.11.1","- bieżące",230]
["11.2","PFPFC.C1_2","PFPFC.C1_2.I.11.2","- majątkowe",617]
["11.2.1","PFPFC.POZ_C_11","PFPFC.POZ_C_11"]
["11.2.2","PFPFC.POZ_C_11","PFPFC.POZ_C_11"]
["11.2.3","PFPFC.POZ_C_11","PFPFC.POZ_C_11"]
["11.2.4","PFPFC.POZ_C_11","PFPFC.POZ_C_11"]
["11.2.5","PFPFC.POZ_C_11","PFPFC.POZ_C_11"]
[12,"PFPFC.C1_21","PFPFC.C1_21.I.12","Pozostałe wpływy, w tym:","x"]
["12.1","PFPFC.C1_21","PFPFC.C1_21.I.12.1","z tytułu refundacji i zwrotów:7)"]
["12.1.1","PFPFC.C1_21","PFPFC.C1_21.I.12.1.1"," - refundacja kosztów obsługi:"]
["12.1.1.1","PFPFC.C1_21","PFPFC.C1_21.I.12.1.1.1","      - świadczeń zleconych do wypłaty"]
["12.1.1.2","PFPFC.C1_21","PFPFC.C1_21.I.12.1.1.2","      - rent socjalnych "]
["12.1.1.3","PFPFC.C1_21","PFPFC.C1_21.I.12.1.1.3","      - refundacja przez ZUS kosztów obsługi tzw. \n        świadczeń zbiegowych"]
["12.1.2","PFPFC.C1_21","PFPFC.C1_21.I.12.1.2"," - z tytułu zwrotu kosztów poboru i ewidencjonowania \n   składek na ubezpieczenie zdrowotne"]
["12.2","PFPFC.C1_21","PFPFC.C1_21.I.12.2","Pozostałe odsetki"," 092"]
["12.3","PFPFC.POZ_C_2","PFPFC.POZ_C_2"]
["12.4","PFPFC.POZ_C_2","PFPFC.POZ_C_2"]
["12.5","PFPFC.POZ_C_2","PFPFC.POZ_C_2"]
["12.6","PFPFC.POZ_C_2","PFPFC.POZ_C_2"]
["12.7","PFPFC.POZ_C_2","PFPFC.POZ_C_2"]
["12.8","PFPFC.POZ_C_2","PFPFC.POZ_C_2"]
["II","PFPFC.C1_3","PFPFC.C1_3.II","Wypływy","x",{"$f":"SUM(F425,F426,F427,F435,F436,F521,F531,F538,F539,F542,F543)","v":0},0,0,0,0,0,0]
[1,"PFPFC.C1_3","PFPFC.C1_3.II.1","Dotacje na realizację zadań bieżących","244, 245"]
[2,"PFPFC.C1_3","PFPFC.C1_3.II.2","Środki na realizację zadań bieżących przekazane innym podmiotom","269, 289, ...**)"]
[3,"PFPFC.C1_3","PFPFC.C1_3.II.3","Transfery na rzecz ludności, z tego na:6)",null,{"$f":"SUM(F428:F434)","v":0},{"$f":"SUM(G428:G434)","v":0},0,0,0,0,0]
["3.1","PFPFC.POZ_C_3","PFPFC.POZ_C_3"]
["3.2","PFPFC.POZ_C_3","PFPFC.POZ_C_3"]
["3.3","PFPFC.POZ_C_3","PFPFC.POZ_C_3"]
["3.4","PFPFC.POZ_C_3","PFPFC.POZ_C_3"]
["3.5","PFPFC.POZ_C_3","PFPFC.POZ_C_3"]
["3.6","PFPFC.POZ_C_3","PFPFC.POZ_C_3"]
["3.7","PFPFC.POZ_C_3","PFPFC.POZ_C_3"]
[4,"PFPFC.C1_4","PFPFC.C1_4.II.4","Środki z Unii Europejskiej 5)"]
[5,"PFPFC.C1_4","PFPFC.C1_4.II.5","Wydatki bieżące (własne)","x"]
["5.1","PFPFC.C1_4","PFPFC.C1_4.II.5.1","wynagrodzenia, z tego:","401-410, 417, 418",{"$f":"SUM(F438:F440)","v":0},{"$f":"SUM(G438:G440)","v":0},0,0,0,0,0]
["5.1.1","PFPFC.C1_4","PFPFC.C1_4.II.5.1.1","   - osobowe "]
["5.1.2","PFPFC.C1_4","PFPFC.C1_4.II.5.1.2","   - bezosobowe9)"]
["5.1.3","PFPFC.C1_4","PFPFC.C1_4.II.5.1.3","   - pozostałe "]
["5.2","PFPFC.C1_4","PFPFC.C1_4.II.5.2","składki na ubezpieczenia społeczne",411]
["5.3","PFPFC.C1_4","PFPFC.C1_4.II.5.3","składki na Fundusz Pracy oraz Fundusz Solidarnościowy",412]
["5.4","PFPFC.C1_4","PFPFC.C1_4.II.5.4","składki na Fundusz Emerytur Pomostowych",478]
["5.5","PFPFC.C1_4","PFPFC.C1_4.II.5.5","zakup usług"]
["5.6","PFPFC.C1_4","PFPFC.C1_4.II.5.6","pozostałe, z tego:","x",{"$f":"SUM(F446,F447,F448)","v":0},{"$f":"SUM(G446,G447,G448)","v":0},0,0,0,0,0]
["5.6.1","PFPFC.C1_4","PFPFC.C1_4.II.5.6.1","   - związane z poborem składki","x"]
["5.6.2","PFPFC.C1_4","PFPFC.C1_4.II.5.6.2","   - odsetki od kredytów i pożyczek","x"]
["5.6.3","PFPFC.C1_4","PFPFC.C1_4.II.5.6.3","   - inne***)","x"]
[null,"PFPFC.POZ_C_4","PFPFC.POZ_C_4"]
[null,"PFPFC.POZ_C_4","PFPFC.POZ_C_4"]
[null,"PFPFC.POZ_C_4","PFPFC.POZ_C_4"]
[null,"PFPFC.POZ_C_4","PFPFC.POZ_C_4"]
[null,"PFPFC.POZ_C_4","PFPFC.POZ_C_4"]
[null,"PFPFC.POZ_C_4","PFPFC.POZ_C_4"]
[null,"PFPFC.POZ_C_4","PFPFC.POZ_C_4"]
[null,"PFPFC.POZ_C_4","PFPFC.POZ_C_4"]
[null,"PFPFC.POZ_C_4","PFPFC.POZ_C_4"]
[null,"PFPFC.POZ_C_4","PFPFC.POZ_C_4"]
[null,"PFPFC.POZ_C_4","PFPFC.POZ_C_4"]
[null,"PFPFC.POZ_C_4","PFPFC.POZ_C_4"]
[null,"PFPFC.POZ_C_4","PFPFC.POZ_C_4"]
[null,"PFPFC.POZ_C_4","PFPFC.POZ_C_4"]
[null,"PFPFC.POZ_C_4","PFPFC.POZ_C_4"]
[null,"PFPFC.POZ_C_4","PFPFC.POZ_C_4"]
[null,"PFPFC.POZ_C_4","PFPFC.POZ_C_4"]
[null,"PFPFC.POZ_C_4","PFPFC.POZ_C_4"]
[null,"PFPFC.POZ_C_4","PFPFC.POZ_C_4"]
[null,"PFPFC.POZ_C_4","PFPFC.POZ_C_4"]
[null,"PFPFC.POZ_C_4","PFPFC.POZ_C_4"]
[null,"PFPFC.POZ_C_4","PFPFC.POZ_C_4"]
[null,"PFPFC.POZ_C_4","PFPFC.POZ_C_4"]
[null,"PFPFC.POZ_C_4","PFPFC.POZ_C_4"]
[null,"PFPFC.POZ_C_4","PFPFC.POZ_C_4"]
[null,"PFPFC.POZ_C_4","PFPFC.POZ_C_4"]
[null,"PFPFC.POZ_C_4","PFPFC.POZ_C_4"]
[null,"PFPFC.POZ_C_4","PFPFC.POZ_C_4"]
[null,"PFPFC.POZ_C_4","PFPFC.POZ_C_4"]
[null,"PFPFC.POZ_C_4","PFPFC.POZ_C_4"]
[null,"PFPFC.POZ_C_4","PFPFC.POZ_C_4"]
[null,"PFPFC.POZ_C_4","PFPFC.POZ_C_4"]
[null,"PFPFC.POZ_C_4","PFPFC.POZ_C_4"]
[null,"PFPFC.POZ_C_4","PFPFC.POZ_C_4"]
[null,"PFPFC.POZ_C_4","PFPFC.POZ_C_4"]
[null,"PFPFC.POZ_C_4","PFPFC.POZ_C_4"]
[null,"PFPFC.POZ_C_4","PFPFC.POZ_C_4"]
[null,"PFPFC.POZ_C_4","PFPFC.POZ_C_4"]
[null,"PFPFC.POZ_C_4","PFPFC.POZ_C_4"]
[null,"PFPFC.POZ_C_4","PFPFC.POZ_C_4"]
[null,"PFPFC.POZ_C_4","PFPFC.POZ_C_4"]
[null,"PFPFC.POZ_C_4","PFPFC.POZ_C_4"]
[null,"PFPFC.POZ_C_4","PFPFC.POZ_C_4"]
[null,"PFPFC.POZ_C_4","PFPFC.POZ_C_4"]
[null,"PFPFC.POZ_C_4","PFPFC.POZ_C_4"]
[null,"PFPFC.POZ_C_4","PFPFC.POZ_C_4"]
[null,"PFPFC.POZ_C_4","PFPFC.POZ_C_4"]
[null,"PFPFC.POZ_C_4","PFPFC.POZ_C_4"]
[null,"PFPFC.POZ_C_4","PFPFC.POZ_C_4"]
[null,"PFPFC.POZ_C_4","PFPFC.POZ_C_4"]
[null,"PFPFC.POZ_C_4","PFPFC.POZ_C_4"]
[null,"PFPFC.POZ_C_4","PFPFC.POZ_C_4"]
[null,"PFPFC.POZ_C_4","PFPFC.POZ_C_4"]
[null,"PFPFC.POZ_C_4","PFPFC.POZ_C_4"]
[null,"PFPFC.POZ_C_4","PFPFC.POZ_C_4"]
[null,"PFPFC.POZ_C_4","PFPFC.POZ_C_4"]
[null,"PFPFC.POZ_C_4","PFPFC.POZ_C_4"]
[null,"PFPFC.POZ_C_4","PFPFC.POZ_C_4"]
[null,"PFPFC.POZ_C_4","PFPFC.POZ_C_4"]
[null,"PFPFC.POZ_C_4","PFPFC.POZ_C_4"]
[null,"PFPFC.POZ_C_4","PFPFC.POZ_C_4"]
[null,"PFPFC.POZ_C_4","PFPFC.POZ_C_4"]
[null,"PFPFC.POZ_C_4","PFPFC.POZ_C_4"]
[null,"PFPFC.POZ_C_4","PFPFC.POZ_C_4"]
[null,"PFPFC.POZ_C_4","PFPFC.POZ_C_4"]
[null,"PFPFC.POZ_C_4","PFPFC.POZ_C_4"]
[null,"PFPFC.POZ_C_4","PFPFC.POZ_C_4"]
[null,"PFPFC.POZ_C_4","PFPFC.POZ_C_4"]
[null,"PFPFC.POZ_C_4","PFPFC.POZ_C_4"]
[null,"PFPFC.POZ_C_4","PFPFC.POZ_C_4"]
[null,"PFPFC.POZ_C_4","PFPFC.POZ_C_4"]
[null,"PFPFC.POZ_C_4","PFPFC.POZ_C_4"]
[6,"PFPFC.C1_41","PFPFC.C1_41.II.6","Wydatki inwestycyjne","x"]
["6.1","PFPFC.C1_41","PFPFC.C1_41.II.6.1","- wydatki inwestycyjne i wydatki na zakupy inwestycyjne","611, 612"]
["6.1.1","PFPFC.POZ_C_41","PFPFC.POZ_C_41"]
["6.1.2","PFPFC.POZ_C_41","PFPFC.POZ_C_41"]
["6.2","PFPFC.C1_42","PFPFC.C1_42.II.6.2","- dotacje inwestycyjne","626, 627"]
["6.2.1","PFPFC.POZ_C_42","PFPFC.POZ_C_42"]
["6.2.2","PFPFC.POZ_C_42","PFPFC.POZ_C_42"]
["6.3","PFPFC.C1_43","PFPFC.C1_43.II.6.3","- środki przekazane innym podmiotom na inwestycje","667, ... **)"]
["6.3.1","PFPFC.POZ_C_43","PFPFC.POZ_C_43"]
["6.3.2","PFPFC.POZ_C_43","PFPFC.POZ_C_43"]
[7,"PFPFC.C1_5","PFPFC.C1_5.II.7","Przelewy redystrybucyjne, z tego na: 6)",296,{"$f":"SUM(F532:F537)","v":0},{"$f":"SUM(G532:G537)","v":0},0,0,0,0,0]
["7.1","PFPFC.POZ_C_5","PFPFC.POZ_C_5"]
["7.2","PFPFC.POZ_C_5","PFPFC.POZ_C_5"]
["7.3","PFPFC.POZ_C_5","PFPFC.POZ_C_5"]
["7.4","PFPFC.POZ_C_5","PFPFC.POZ_C_5"]
["7.5","PFPFC.POZ_C_5","PFPFC.POZ_C_5"]
["7.6","PFPFC.POZ_C_5","PFPFC.POZ_C_5"]
[8,"PFPFC.C1_6","PFPFC.C1_6.II.8","Spłata kredytów i pożyczek (raty kapitałowe)"]
[9,"PFPFC.C1_6","PFPFC.C1_6.II.9","Wpłata do budżetu państwa, w tym:","x"]
["9.1","PFPFC.C1_6","PFPFC.C1_6.II.9.1","wpłaty do budżetu państwa10)",242]
["9.2","PFPFC.C1_6","PFPFC.C1_6.II.9.2","wpłata do budżetu nadwyżek środków znajdujących się na rachunkach państwowych funduszy celowych tworzonych z przychodów z prywatyzacji",299]
[10,"PFPFC.C1_6","PFPFC.C1_6.II.10","Wypływy z tytułu udzielonych j.s.t. pożyczek"]
[11,"PFPFC.C1_6","PFPFC.C1_6.II.11","Pozostałe wypływy, z tego: "]
["11.1","PFPFC.POZ_C_6","PFPFC.POZ_C_6"]
["11.2","PFPFC.POZ_C_6","PFPFC.POZ_C_6"]
["11.3","PFPFC.POZ_C_6","PFPFC.POZ_C_6"]
[]
["**) należy wskazać właściwe paragrafy zgodnie z obowiązującym na dzień złożenia formularza rozporządzeniem Ministra Finansów w sprawie szczegółowej klasyfikacji, dochodów, wydatków, przychodów i rozchodów oraz środków pochodzących ze źródeł zagranicznych."]
["***) W tej pozycji od 2021 roku należy ująć również wpłaty na pracownicze plany kapitałowe."]
["11) Dotacje na inwestycje i zakupy inwestycyjne należy wykazać w otrzymywanej wysokości."]
["12) Należy wypełnić w przypadku prezentowania danych w ustawie budżetowej na rok bieżący (N)."]

{"sheet":"PFC D E F G","index":1,"n_rows":53,"n_cols":11,"rows_kept":53,"cut":false,"hidden":false,"merged":[[4,4,4,10],[19,4,19,10],[28,4,28,10],[18,3,19,3],[3,3,4,3],[27,3,28,3],[3,1,4,1],[3,2,4,2],[3,0,4,0],[27,1,28,1],[27,2,28,2],[27,0,28,0],[18,1,19,1],[18,2,19,2],[18,0,19,0]]}
[]
[]
["Część D Dane uzupełniające"]
["Lp.","CHAPTER_CODE","UATTRIBUTE01","Wyszczególnienie","Wstępne wykonanie na……... r.\n(rok N-1)","Ustawa budżetowa na ……. r.\n(rok N)","Przewidywane wykonanie w ………. r.\n(rok N)","Projekt planu na ………. r.\n(rok N+1)","Projekt planu na ………. r.\n(rok N+2)","Projekt planu na ………. r.\n(rok N+3)","Projekt planu na ………. r.\n(rok N+4)"]
[null,null,null,null,"w tysiącach złotych"]
[1,null,null,2,"3","4","5","6","7","8","9"]
[1,"PFPFC.D1_1","PFPFC.D1_1.1","Zobowiązania 13)\nzaliczane do państwowego długu publicznego wg wartości nominalnej, z tego:",{"$f":"SUM(E8+E9+E12+E13)","v":0},{"$f":"SUM(F8+F9+F12+F13)","v":0},0,0,0,0,0]
["1.1","PFPFC.D1_1","PFPFC.D1_1.1.1","Papiery wartościowe"]
["1.2","PFPFC.D1_1","PFPFC.D1_1.1.2","Kredyty i pożyczki, w tym zaciągniete od:"]
["1.2.1","PFPFC.D1_1","PFPFC.D1_1.1.2.1"," - sektora finansów publicznych"]
["1.2.2","PFPFC.D1_1","PFPFC.D1_1.1.2.2"," - pozostałych"]
["1.3","PFPFC.D1_1","PFPFC.D1_1.1.3","Depozyty przyjęte przez fundusz"]
["1.4","PFPFC.D1_1","PFPFC.D1_1.1.4","Zobowiązania wymagalne"]
[]
["13) Należy podać przewidywany stan na dzień 31 grudnia."]
[]
[]
["Część E  Dane uzupełniające"]
["Lp.","CHAPTER_CODE","UATTRIBUTE01","Wyszczególnienie","Wstępne wykonanie / wykonanie*) na…... r.\n(rok N-1)","Ustawa budżetowa na ……. r.\n(rok N)","Przewidywane wykonanie w ………. r.\n(rok N)","Projekt planu na ………. r.\n(rok N+1)","Projekt planu na ………. r.\n(rok N+2)","Projekt planu na ………. r.\n(rok N+3)","Projekt planu na ………. r.\n(rok N+4)"]
[null,null,null,null,"w tysiącach złotych"]
[1,null,null,2,"3","4","5","6","7","8","9"]
[1,"PFPFC.E1_1","PFPFC.E1_1.1","Wolne środki finansowe przekazane w zarządzanie lub depozyt u Ministra Finansów",{"$f":"SUM(E23,E24)","v":0},{"$f":"SUM(F23,F24)","v":0},0,0,0,0,0]
["1.1","PFPFC.E1_1","PFPFC.E1_1.1.1"," -  overnight (O/N)"]
["1.2","PFPFC.E1_1","PFPFC.E1_1.1.2"," -  terminowe"]
[]
[]
["Część F  Dane uzupełniające14)"]
["Lp.","CHAPTER_CODE","UATTRIBUTE01","Wyszczególnienie","Wstępne wykonanie / wykonanie*) na…... r.\n(rok N-1)","Ustawa budżetowa na ……. r.\n(rok N)","Przewidywane wykonanie w ………. r.\n(rok N)","Projekt planu na ………. r.\n(rok N+1)","Projekt planu na ………. r.\n(rok N+2)","Projekt planu na ………. r.\n(rok N+3)","Projekt planu na ………. r.\n(rok N+4)"]
[null,null,null,null,"w tysiącach złotych"]
[1,null,null,2,"3","4","5","6","7","8","9"]
[1,"PFPFC.F1_1","PFPFC.F1_1.1","Zapasy agencyjne - Stan na początek roku"]
["1.1","PFPFC.POZ_F_1","PFPFC.POZ_F_1"]
["1.2","PFPFC.POZ_F_1","PFPFC.POZ_F_1"]
[2,"PFPFC.F1_2","PFPFC.F1_2.1","Zapasy agencyjne - Stan na koniec roku"]
["2.1","PFPFC.POZ_F_2","PFPFC.POZ_F_2"]
["2.2","PFPFC.POZ_F_2","PFPFC.POZ_F_2"]
[]
["14) Wypełnia Fundusz Zapasów Interwencyjnych."]
[]
[" "]
["Część G  Dane uzupełniające15)"]
["Lp.","CHAPTER_CODE","UATTRIBUTE01","Wyszczególnienie","Stan na dzień \n31 grudnia …. r.\n(rok N-1)","Ustawa budżetowa na ……. r.\n(rok N)","Przewidywane wykonanie w ………. r.\n(rok N)","Projekt planu na ………. r.\n(rok N+1)","Projekt planu na ………. r.\n(rok N+2)","Projekt planu na ………. r.\n(rok N+3)","Projekt planu na ………. r.\n(rok N+4)"]
[1,null,null,2,"3","4","5","6","7","8","9"]
[1,"PFPFC.G1_1","PFPFC.G1_1.1","LICZBA ZATRUDNIONYCH\n(w przeliczeniu na pełne etaty)"]
[]
["15) Wypełnia Fundusz Administracyjny Kasy Rolniczego Ubezpieczenia Społecznego."]
[]
[]
[]
["sporządził ....................................................................."]
["                         (imię i nazwisko, stanowisko służbowe)"]
["nr telefonu .........................     adres e-mail ........................................"]
["data .........................        podpis ........................."]

{"sheet":"PFC H","index":2,"n_rows":172,"n_cols":12,"rows_kept":172,"cut":false,"hidden":false,"merged":[[143,0,143,11],[1,1,2,1],[1,2,2,2],[1,0,2,0],[1,3,2,3],[1,4,2,4],[2,5,2,11],[71,0,72,0],[71,3,72,3],[71,4,72,4],[72,5,72,11]]}
["Część H.  Dane statystyczne w układzie memoriałowym"]
["Lp.","CHAPTER_CODE","UATTRIBUTE01","Wyszczególnienie","Paragraf 16)","Wstępne wykonanie / wykonanie*) na…... r.\n(rok N-1)","Ustawa budżetowa na ……. r.\n(rok N)","Przewidywane wykonanie w ………. r.\n(rok N)","Projekt planu na ………. r.\n(rok N+1)","Projekt planu na ………. r.\n(rok N+2)","Projekt planu na ………. r.\n(rok N+3)","Projekt planu na ………. r.\n(rok N+4)"]
[null,null,null,null,null,"w tysiącach złotych"]
[1,null,null,2,3,4,5,6,7,8,9,10]
["I","PFPFC.H1_1","PFPFC.H1_1.I","ŚRODKI OTRZYMANE Z UNII EUROPEJSKIEJ17) 20)\nz tego od:18)",null,{"$f":"PFC!F192","v":0},{"$f":"PFC!G192","v":0},{"$f":"PFC!H192","v":0},{"$f":"PFC!I192","v":0},{"$f":"PFC!J192","v":0},{"$f":"PFC!K192","v":0},{"$f":"PFC!L192","v":0}]
[1,"PFPFC.POZ_H_1","PFPFC.POZ_H_1"]
[2,"PFPFC.POZ_H_1","PFPFC.POZ_H_1"]
[3,"PFPFC.POZ_H_1","PFPFC.POZ_H_1"]
[4,"PFPFC.POZ_H_1","PFPFC.POZ_H_1"]
[5,"PFPFC.POZ_H_1","PFPFC.POZ_H_1"]
[6,"PFPFC.POZ_H_1","PFPFC.POZ_H_1"]
[7,"PFPFC.POZ_H_1","PFPFC.POZ_H_1"]
[8,"PFPFC.POZ_H_1","PFPFC.POZ_H_1"]
["II","PFPFC.H1_2","PFPFC.H1_2.II","PRZELEWY REDYSTRYBUCYJNE 21) z tego od:18)",296,{"$f":"PFC!F198","v":0},{"$f":"PFC!G198","v":0},{"$f":"PFC!H198","v":0},{"$f":"PFC!I198","v":0},{"$f":"PFC!J198","v":0},{"$f":"PFC!K198","v":0},{"$f":"PFC!L198","v":0}]
[1,"PFPFC.POZ_H_2","PFPFC.POZ_H_2"]
[2,"PFPFC.POZ_H_2","PFPFC.POZ_H_2"]
[3,"PFPFC.POZ_H_2","PFPFC.POZ_H_2"]
[4,"PFPFC.POZ_H_2","PFPFC.POZ_H_2"]
[5,"PFPFC.POZ_H_2","PFPFC.POZ_H_2"]
[6,"PFPFC.POZ_H_2","PFPFC.POZ_H_2"]
[7,"PFPFC.POZ_H_2","PFPFC.POZ_H_2"]
[8,"PFPFC.POZ_H_2","PFPFC.POZ_H_2"]
["III","PFPFC.H1_3","PFPFC.H1_3.III","DOTACJE"]
[1,"PFPFC.H1_3","PFPFC.H1_3.III.1","na realizację zadań bieżących 22), z tego dla:19)","244, 245",{"$f":"PFC!F228","v":0},{"$f":"PFC!G228","v":0},{"$f":"PFC!H228","v":0},{"$f":"PFC!I228","v":0},{"$f":"PFC!J228","v":0},{"$f":"PFC!K228","v":0},{"$f":"PFC!L228","v":0}]
["1.1","PFPFC.POZ_H_3","PFPFC.POZ_H_3"]
["1.2","PFPFC.POZ_H_3","PFPFC.POZ_H_3"]
["1.3","PFPFC.POZ_H_3","PFPFC.POZ_H_3"]
["1.4","PFPFC.POZ_H_3","PFPFC.POZ_H_3"]
["1.5","PFPFC.POZ_H_3","PFPFC.POZ_H_3"]
["1.6","PFPFC.POZ_H_3","PFPFC.POZ_H_3"]
["1.7","PFPFC.POZ_H_3","PFPFC.POZ_H_3"]
["1.8","PFPFC.POZ_H_3","PFPFC.POZ_H_3"]
[2,"PFPFC.H1_4","PFPFC.H1_4.III.2","inwestycyjne 23), z tego dla:19)","626, 627",{"$f":"PFC!F327","v":0},{"$f":"PFC!G327","v":0},{"$f":"PFC!H327","v":0},{"$f":"PFC!I327","v":0},{"$f":"PFC!J327","v":0},{"$f":"PFC!K327","v":0},{"$f":"PFC!L327","v":0}]
["2.1","PFPFC.POZ_H_4","PFPFC.POZ_H_4"]
["2.2","PFPFC.POZ_H_4","PFPFC.POZ_H_4"]
["2.3","PFPFC.POZ_H_4","PFPFC.POZ_H_4"]
["2.4","PFPFC.POZ_H_4","PFPFC.POZ_H_4"]
["2.5","PFPFC.POZ_H_4","PFPFC.POZ_H_4"]
["2.6","PFPFC.POZ_H_4","PFPFC.POZ_H_4"]
["2.7","PFPFC.POZ_H_4","PFPFC.POZ_H_4"]
["2.8","PFPFC.POZ_H_4","PFPFC.POZ_H_4"]
["IV","PFPFC.H1_5","PFPFC.H1_5.IV","ŚRODKI "]
[1,"PFPFC.H1_5","PFPFC.H1_5.IV.1","na realizację zadań bieżących 24), z tego dla:19)","269, 289, ...",{"$f":"PFC!F229","v":0},{"$f":"PFC!G229","v":0},{"$f":"PFC!H229","v":0},{"$f":"PFC!I229","v":0},{"$f":"PFC!J229","v":0},{"$f":"PFC!K229","v":0},{"$f":"PFC!L229","v":0}]
["1.1","PFPFC.POZ_H_5","PFPFC.POZ_H_5"]
["1.2","PFPFC.POZ_H_5","PFPFC.POZ_H_5"]
["1.3","PFPFC.POZ_H_5","PFPFC.POZ_H_5"]
["1.4","PFPFC.POZ_H_5","PFPFC.POZ_H_5"]
["1.5","PFPFC.POZ_H_5","PFPFC.POZ_H_5"]
["1.6","PFPFC.POZ_H_5","PFPFC.POZ_H_5"]
["1.7","PFPFC.POZ_H_5","PFPFC.POZ_H_5"]
["1.8","PFPFC.POZ_H_5","PFPFC.POZ_H_5"]
[2,"PFPFC.H1_6","PFPFC.H1_6.IV.2","inwestycyjne 25), z tego dla:19)","667, ...",{"$f":"PFC!F330","v":0},{"$f":"PFC!G330","v":0},{"$f":"PFC!H330","v":0},{"$f":"PFC!I330","v":0},{"$f":"PFC!J330","v":0},{"$f":"PFC!K330","v":0},{"$f":"PFC!L330","v":0}]
["2.1","PFPFC.POZ_H_6","PFPFC.POZ_H_6"]
["2.2","PFPFC.POZ_H_6","PFPFC.POZ_H_6"]
["2.3","PFPFC.POZ_H_6","PFPFC.POZ_H_6"]
["2.4","PFPFC.POZ_H_6","PFPFC.POZ_H_6"]
["2.5","PFPFC.POZ_H_6","PFPFC.POZ_H_6"]
["2.6","PFPFC.POZ_H_6","PFPFC.POZ_H_6"]
["2.7","PFPFC.POZ_H_6","PFPFC.POZ_H_6"]
["2.8","PFPFC.POZ_H_6","PFPFC.POZ_H_6"]
["V","PFPFC.H1_7","PFPFC.H1_7.V","PRZELEWY REDYSTRYBUCYJNE 26) z tego dla:19)",296,{"$f":"PFC!F333","v":0},{"$f":"PFC!G333","v":0},{"$f":"PFC!H333","v":0},{"$f":"PFC!I333","v":0},{"$f":"PFC!J333","v":0},{"$f":"PFC!K333","v":0},{"$f":"PFC!L333","v":0}]
[1,"PFPFC.POZ_H_7","PFPFC.POZ_H_7"]
[2,"PFPFC.POZ_H_7","PFPFC.POZ_H_7"]
[3,"PFPFC.POZ_H_7","PFPFC.POZ_H_7"]
[4,"PFPFC.POZ_H_7","PFPFC.POZ_H_7"]
[5,"PFPFC.POZ_H_7","PFPFC.POZ_H_7"]
[6,"PFPFC.POZ_H_7","PFPFC.POZ_H_7"]
[7,"PFPFC.POZ_H_7","PFPFC.POZ_H_7"]
[8,"PFPFC.POZ_H_7","PFPFC.POZ_H_7"]
[]
["Część H.  Dane statystyczne w układzie kasowym"]
["Lp.",null,null,"Wyszczególnienie","Paragraf 16)","Wstępne wykonanie / wykonanie*) na…... r.\n(rok N-1)","Ustawa budżetowa na ……. r.\n(rok N)","Przewidywane wykonanie w ………. r.\n(rok N)","Projekt planu na ………. r.\n(rok N+1)","Projekt planu na ………. r.\n(rok N+2)","Projekt planu na ………. r.\n(rok N+3)","Projekt planu na ………. r.\n(rok N+4)"]
[null,null,null,null,null,"w tysiącach złotych"]
[1,null,null,2,3,4,5,6,7,8,9,10]
["I","PFPFC.H2_1","PFPFC.H2_1.I","ŚRODKI OTRZYMANE Z UNII EUROPEJSKIEJ17) 27)\nz tego od:18)",null,{"$f":"PFC!F388","v":0},{"$f":"PFC!G388","v":0},{"$f":"PFC!H388","v":0},{"$f":"PFC!I388","v":0},{"$f":"PFC!J388","v":0},{"$f":"PFC!K388","v":0},{"$f":"PFC!L388","v":0}]
[1,"PFPFC.POZ_H2_1","PFPFC.POZ_H2_1"]
[2,"PFPFC.POZ_H2_1","PFPFC.POZ_H2_1"]
[3,"PFPFC.POZ_H2_1","PFPFC.POZ_H2_1"]
[4,"PFPFC.POZ_H2_1","PFPFC.POZ_H2_1"]
[5,"PFPFC.POZ_H2_1","PFPFC.POZ_H2_1"]
[6,"PFPFC.POZ_H2_1","PFPFC.POZ_H2_1"]
[7,"PFPFC.POZ_H2_1","PFPFC.POZ_H2_1"]
[8,"PFPFC.POZ_H2_1","PFPFC.POZ_H2_1"]
["II","PFPFC.H2_2","PFPFC.H2_2.II","PRZELEWY REDYSTRYBUCYJNE 28)\nz tego od:18)",296,{"$f":"PFC!F392","v":0},{"$f":"PFC!G392","v":0},{"$f":"PFC!H392","v":0},{"$f":"PFC!I392","v":0},{"$f":"PFC!J392","v":0},{"$f":"PFC!K392","v":0},{"$f":"PFC!L392","v":0}]
[1,"PFPFC.POZ_H2_2","PFPFC.POZ_H2_2"]
[2,"PFPFC.POZ_H2_2","PFPFC.POZ_H2_2"]
[3,"PFPFC.POZ_H2_2","PFPFC.POZ_H2_2"]
[4,"PFPFC.POZ_H2_2","PFPFC.POZ_H2_2"]
[5,"PFPFC.POZ_H2_2","PFPFC.POZ_H2_2"]
[6,"PFPFC.POZ_H2_2","PFPFC.POZ_H2_2"]
[7,"PFPFC.POZ_H2_2","PFPFC.POZ_H2_2"]
[8,"PFPFC.POZ_H2_2","PFPFC.POZ_H2_2"]
["III","PFPFC.H2_3","PFPFC.H2_3.III","DOTACJE"]
[1,"PFPFC.H2_3","PFPFC.H2_3.III.1","na realizację zadań bieżących 29), z tego dla:19) \n","244, 245",{"$f":"PFC!F425","v":0},{"$f":"PFC!G425","v":0},{"$f":"PFC!H425","v":0},{"$f":"PFC!I425","v":0},{"$f":"PFC!J425","v":0},{"$f":"PFC!K425","v":0},{"$f":"PFC!L425","v":0}]
["1.1","PFPFC.POZ_H2_3","PFPFC.POZ_H2_3"]
["1.2","PFPFC.POZ_H2_3","PFPFC.POZ_H2_3"]
["1.3","PFPFC.POZ_H2_3","PFPFC.POZ_H2_3"]
["1.4","PFPFC.POZ_H2_3","PFPFC.POZ_H2_3"]
["1.5","PFPFC.POZ_H2_3","PFPFC.POZ_H2_3"]
["1.6","PFPFC.POZ_H2_3","PFPFC.POZ_H2_3"]
["1.7","PFPFC.POZ_H2_3","PFPFC.POZ_H2_3"]
["1.8","PFPFC.POZ_H2_3","PFPFC.POZ_H2_3"]
[2,"PFPFC.H2_4","PFPFC.H2_4.III.2","inwestycyjne 30), z tego dla:19)","626, 627",{"$f":"PFC!F525","v":0},{"$f":"PFC!G525","v":0},{"$f":"PFC!H525","v":0},{"$f":"PFC!I525","v":0},{"$f":"PFC!J525","v":0},{"$f":"PFC!K525","v":0},{"$f":"PFC!L525","v":0}]
["2.1","PFPFC.POZ_H2_4","PFPFC.POZ_H2_4"]
["2.2","PFPFC.POZ_H2_4","PFPFC.POZ_H2_4"]
["2.3","PFPFC.POZ_H2_4","PFPFC.POZ_H2_4"]
["2.4","PFPFC.POZ_H2_4","PFPFC.POZ_H2_4"]
["2.5","PFPFC.POZ_H2_4","PFPFC.POZ_H2_4"]
["2.6","PFPFC.POZ_H2_4","PFPFC.POZ_H2_4"]
["2.7","PFPFC.POZ_H2_4","PFPFC.POZ_H2_4"]
["2.8","PFPFC.POZ_H2_4","PFPFC.POZ_H2_4"]
["IV","PFPFC.H2_5","PFPFC.H2_5.IV","ŚRODKI "]
[1,"PFPFC.H2_5","PFPFC.H2_5.IV.1","na realizację zadań bieżących 31), z tego dla:19)","269, 289, ...",{"$f":"PFC!F426","v":0},{"$f":"PFC!G426","v":0},{"$f":"PFC!H426","v":0},{"$f":"PFC!I426","v":0},{"$f":"PFC!J426","v":0},{"$f":"PFC!K426","v":0},{"$f":"PFC!L426","v":0}]
["1.1","PFPFC.POZ_H2_5","PFPFC.POZ_H2_5"]
["1.2","PFPFC.POZ_H2_5","PFPFC.POZ_H2_5"]
["1.3","PFPFC.POZ_H2_5","PFPFC.POZ_H2_5"]
["1.4","PFPFC.POZ_H2_5","PFPFC.POZ_H2_5"]
["1.5","PFPFC.POZ_H2_5","PFPFC.POZ_H2_5"]
["1.6","PFPFC.POZ_H2_5","PFPFC.POZ_H2_5"]
["1.7","PFPFC.POZ_H2_5","PFPFC.POZ_H2_5"]
["1.8","PFPFC.POZ_H2_5","PFPFC.POZ_H2_5"]
[2,"PFPFC.H2_6","PFPFC.H2_6.IV.2","inwestycyjne 32), z tego dla:19)","667, ...",{"$f":"PFC!F528","v":0},{"$f":"PFC!G528","v":0},{"$f":"PFC!H528","v":0},{"$f":"PFC!I528","v":0},{"$f":"PFC!J528","v":0},{"$f":"PFC!K528","v":0},{"$f":"PFC!L528","v":0}]
["2.1","PFPFC.POZ_H2_6","PFPFC.POZ_H2_6"]
["2.2","PFPFC.POZ_H2_6","PFPFC.POZ_H2_6"]
["2.3","PFPFC.POZ_H2_6","PFPFC.POZ_H2_6"]
["2.4","PFPFC.POZ_H2_6","PFPFC.POZ_H2_6"]
["2.5","PFPFC.POZ_H2_6","PFPFC.POZ_H2_6"]
["2.6","PFPFC.POZ_H2_6","PFPFC.POZ_H2_6"]
["2.7","PFPFC.POZ_H2_6","PFPFC.POZ_H2_6"]
["2.8","PFPFC.POZ_H2_6","PFPFC.POZ_H2_6"]
["V","PFPFC.H2_7","PFPFC.H2_7.V","PRZELEWY REDYSTRYBUCYJNE 33)\nz tego dla:19)",296,{"$f":"PFC!F531","v":0},{"$f":"PFC!G531","v":0},{"$f":"PFC!H531","v":0},{"$f":"PFC!I531","v":0},{"$f":"PFC!J531","v":0},{"$f":"PFC!K531","v":0},{"$f":"PFC!L531","v":0}]
[1,"PFPFC.POZ_H2_7","PFPFC.POZ_H2_7"]
[2,"PFPFC.POZ_H2_7","PFPFC.POZ_H2_7"]
[3,"PFPFC.POZ_H2_7","PFPFC.POZ_H2_7"]
[4,"PFPFC.POZ_H2_7","PFPFC.POZ_H2_7"]
[5,"PFPFC.POZ_H2_7","PFPFC.POZ_H2_7"]
[6,"PFPFC.POZ_H2_7","PFPFC.POZ_H2_7"]
[7,"PFPFC.POZ_H2_7","PFPFC.POZ_H2_7"]
[8,"PFPFC.POZ_H2_7","PFPFC.POZ_H2_7"]
[]
["16) Klasyfikacja paragrafów wydatków jest czterocyfrowa; czwartą cyfrą jest odpowiednia cyfra od 1 do 9 lub cyfra 0, przychody należy ujmować stosując"]
["    czwarte cyfry właściwe dla klasyfikacji dochodów. W przypadku wystapienia dochodów lub wydatków w różnych paragrafach, należy każdy paragraf ująć odrębnie "]
["    w oddzielnym wierszu. W kolumnie \"Paragraf\" w wierszach, w których brak jest symbolu paragrafu należy wstawić właściwy paragraf."]
["17) W tej pozycji,  należy wykazać środki w paragrafach z czwartą cyfrą 1, 5, 7 i 8."]
["18) Należy wymienić rodzaje jednostek, od których otrzymywane są środki w szczegółowości nie mniejszej niż w art. 9 ustawy o finansach publicznych, a w przypadku transferów "]
["   do państwowych funduszy celowych, osób prawnych, o których mowa w art. 9 pkt 5 i 14 ustawy o finansach publicznych należy wskazać nazwę jednostki. W przypadku jednostek, "]
["   o których mowa w art. 9 pkt 10 i 13 ustawy, należy wskazać także organ założycielski lub nadzorujący, tj. wskazać odpowiednio: samorządowe samodzielne "]
["   publiczne zakłady opieki zdrowotnej/samodzielne publiczne zakłady opieki zdrowotnej podsektora rządowego, państwowe instytucje kultury/samorządowe instytucje kultury."]
["19) Należy wykazać wszystkie środki, również przekazywane do jednostek spoza sektora finansów publicznych."]
["    W przypadku środków przekazywanych do jednostek sektora finansów publicznych należy wymienić rodzaje jednostek, którym przekazywane są środki w szczegółowości "]
["    nie mniejszej niż w art. 9  ustawy o finansach publicznych, a w przypadku transferu do państwowych funduszy celowych, osób prawnych, o których mowa w art. 9 pkt 5 i 14 ustawy "]
["    o finansach publicznych, należy wskazać nazwę jednostki. W przypadku transferu do jednostek, o których mowa w art. 9 pkt 10 i 13 ustawy należy"]
["    wskazać odpowiednio: państwowe spzoz, samorządowe spzoz, państwowe instytucje kultury, samorządowe instytucje kultury."]
["20) dla danych memoriałowych wykazane wartości równają się wartościom wykazanym w części B.II.2 Środki otrzymane z UE"]
["21) wartość ogółem równa się dla danych memoriałowych pozycji B.II.5"]
["22) dla danych memoriałowych wykazane wartości równają się wartościom wykazanym w części B.III.1 Dotacje na realizację zadań bieżących"]
["23) dla danych memoriałowych wykazane wartości równają się wartościom wykazanym w części B.III.6.1 Dotacje inwestycyjne"]
["24) dla danych memoriałowych wykazane wartości równają się wartościom wykazanym w części B.III.2 Środki na realizację zadań bieżących przekazane innym podmiotom"]
["25) dla danych memoriałowych wykazane wartości równają się wartościom wykazanym w części B.III.6.2 Środki przekazane innym podmiotom na inwestycje"]
["26) wartość ogółem równa się dla danych memoriałowych pozycji B.III.7"]
["27) dla danych kasowych wykazane wartości równają się wartościom wykazanym w części C.I.2 Środki otrzymane z UE"]
["28) wartość ogółem równa się dla danych kasowych C.I.5"]
["29) dla danych kasowych wykazane wartości równają się wartościom wykazanym w części C.II.1 Dotacje na realizację zadań bieżących, "]
["30) dla danych kasowych wykazane wartości równają się wartościom wykazanym w części C.II.6.2 Dotacje inwestycyjne, "]
["31) dla danych kasowych wykazane wartości równają się wartościom wykazanym w części C.II.2 Środki na realizację zadań bieżących przekazane innym podmiotom, "]
["32) dla danych kasowych wykazane wartości równają się wartościom wykazanym w części C.II.6.3 Środki przekazane innym podmiotom na inwestycje, "]
["33) wartość ogółem równa się dla danych kasowych C.II.7"]
[]
["sporządził ....................................................................."]
["                         (imię i nazwisko, stanowisko służbowe)"]
["nr telefonu .........................     adres e-mail ........................................"]
["data .........................        podpis ........................."]

{"sheet":"słownik","index":3,"n_rows":2,"n_cols":1,"rows_kept":2,"cut":false,"hidden":true,"merged":[]}
["z tego:"]
["w tym:"]

{"sheet":"PFC D","index":4,"n_rows":23,"n_cols":44,"rows_kept":23,"cut":false,"hidden":true,"merged":[[2,0,6,0],[2,1,6,1],[5,2,6,2],[5,3,6,3],[5,15,6,15],[2,2,4,7],[2,8,2,43],[3,8,3,16],[3,17,3,25],[5,24,6,24],[5,25,6,25],[5,22,5,23],[5,26,6,26],[5,27,5,30],[5,31,5,32],[5,4,5,7],[3,26,3,34],[3,35,3,43],[4,8,4,43],[5,34,6,34],[5,33,6,33],[5,18,5,21],[5,35,6,35],[5,36,5,39],[5,40,5,41],[5,42,6,42],[5,16,6,16],[5,8,6,8],[5,9,5,12],[5,13,5,14],[5,17,6,17],[5,43,6,43]]}
[]
["Część D  Plan finansowy w układzie zadaniowym*)"]
["Kod klasyfikacji zadaniowej","Cel","Miernik",null,null,null,null,null,"Wydatki według źródeł finansowania / Koszty"]
[null,null,null,null,null,null,null,null,"2018 r.",null,null,null,null,null,null,null,null,"2019 r.",null,null,null,null,null,null,null,null,"2020 r.",null,null,null,null,null,null,null,null,"2021 r.*)"]
[null,null,null,null,null,null,null,null,"w tysiącach złotych"]
[null,null,"Nazwa","Wartość bazowa","Docelowa",null,null,null,"Ogółem\n(10+14+16+17)","Dotacje z budżetu państwa",null,null,null,"Środki otrzymane od innych jednostek SFP o których mowa w art. 9 pkt 5-7 i 14 uofp",null,"Budżet środków europejskich","Pozostałe środki ","Ogółem\n(19+23+25+26)","Dotacje z budżetu państwa",null,null,null,"Środki otrzymane od innych jednostek SFP o których mowa w art. 9 pkt 5-7 i 14 uofp",null,"Budżet środków europejskich","Pozostałe środki ","Ogółem\n(28+32+34+35)","Dotacje z budżetu państwa",null,null,null,"Środki otrzymane od innych jednostek SFP o których mowa w art. 9 pkt 5-7 i 14 uofp",null,"Budżet środków europejskich","Pozostałe środki ","Ogółem\n(37+41+43+44)","Dotacje z budżetu państwa",null,null,null,"Środki otrzymane od innych jednostek SFP o których mowa w art. 9 pkt 5-7 i 14 uofp",null,"Budżet środków europejskich","Pozostałe środki "]
[null,null,null,null,"2018 r.","2019 r.","2020 r.","2021 r.",null,"Kwota dotacji","Część budżetowa","Dział klasyfikacji budżetowej","Rozdział klasyfikacji budżetowej","Kwota przekazanych środków","Jednostka przekazująca",null,null,null,"Kwota dotacji","Część budżetowa","Dział klasyfikacji budżetowej","Rozdział klasyfikacji budżetowej","Kwota przekazanych środków","Jednostka przekazująca",null,null,null,"Kwota dotacji","Część budżetowa","Dział klasyfikacji budżetowej","Rozdział klasyfikacji budżetowej","Kwota przekazanych środków","Jednostka przekazująca",null,null,null,"Kwota dotacji","Część budżetowa","Dział klasyfikacji budżetowej","Rozdział klasyfikacji budżetowej","Kwota przekazanych środków","Jednostka przekazująca"]
[1,2,3,4,5,6,7,8,9,10,11,12,13,14,15,16,17,18,19,20,21,22,23,24,25,26,27,28,29,30,31,32,33,34,35,36,37,38,39,40,41,42,43,44]
[]
[]
[]
[]
[]
[null,null,null,null,null,null,null,null,null,null,null,null,null,null,null,null," "]
[]
["*) Kolumna \"2021 r.\"  dotyczy jedynie sporządzania materiałów na potrzeby Wieloletniego Planu Finansowego Państwa."]
[]
[]
["sporządził ....................................................................."]
[null,"          (imię i nazwisko, stanowisko służbowe)"]
[]
["nr telefonu .........................     adres e-mail ........................................"]
["data .........................              podpis ........................."]